bitfinex/quotes_ETHUSD_20250413
["timestamp","ask_amount","ask_price","bid_price","bid_amount"]
[1744509926756,6.17096,1620.5,1620.2,6.17192]
[1744509926979,6.78766,1620.6,1620.1,7.494]
[1744509927165,6.17075,1620.6,1620.2,6.17207]
[1744509927493,6.17075,1620.6,1620.2,6.172]
[1744509927862,12.34153,1620.6,1620.2,6.172]
[1744509928987,6.17075,1620.6,1620.2,6.172]
[1744509929292,6.17075,1620.6,1620.2,6.17191]
[1744509929486,6.17075,1620.6,1620.1,13.66644]
[1744509929792,6.1712,1620.5,1620.1,13.66644]
[1744509929989,6.17059,1620.6,1620.1,13.66631]
[1744509930175,12.34075,1620.7,1620.3,6.17165]
[1744509930376,6.17022,1620.7,1620.3,6.17165]
[1744509930696,6.16994,1620.8,1620.4,6.17115]
[1744509930990,12.34006,1620.8,1620.4,6.17115]
[1744509931491,0.27239171,1620.7,1620.4,6.17115]
[1744509931700,0.27239171,1620.7,1620.3,8.57485]
[1744509931865,6.44269171,1620.7,1620.3,8.57485]
[1744509932795,0.27239171,1620.7,1620.5,6.17078]
[1744509932982,6.16876,1621.1,1620.7,6.1701]
[1744509933299,0.28968257,1621.0,1620.7,6.1701]
[1744509933495,0.28968257,1621.0,1620.8,6.16976]
[1744509933792,9.16867,1621.1,1620.8,6.16976]
[1744509933998,0.29035879,1621.0,1620.9,6.16914]
[1744509934215,0.02,1621.4,1621.1,6.16838]
[1744509934510,0.2925979,1621.3,1621.2,6.16812]
[1744509934890,12.33402,1621.6,1621.2,6.16812]
[1744509935091,0.29353144,1621.3,1621.2,6.16812]
[1744509935309,12.33402,1621.6,1621.2,6.16812]
[1744509935604,6.16792,1621.3,1620.9,13.66114]
[1744509935805,0.2961658,1621.2,1620.9,13.66114]
[1744509936409,0.2961658,1621.2,1621.0,6.16869]
[1744509936611,3.0,1621.5,1621.2,6.16823]
[1744509936808,6.46490427,1621.4,1621.0,6.16891]
[1744509937009,0.29730427,1621.4,1620.9,8.7619]
[1744509937211,0.29730427,1621.4,1621.1,6.16833]
[1744509937725,6.16806,1621.3,1620.9,14.93126]
[1744509938086,0.29603708,1621.2,1621.0,6.169]
[1744509938411,0.29529071,1621.1,1621.0,6.169]
[1744509938612,6.16804,1621.3,1620.9,13.66116]
[1744509938915,0.29603708,1621.2,1620.9,19.83038]
[1744509939491,0.29603708,1621.2,1620.9,13.66116]
[1744509939892,0.29603708,1621.2,1620.9,19.83042]
[1744509940314,0.29603708,1621.2,1620.9,13.66116]
[1744509940489,0.29603708,1621.2,1620.9,19.83044]
[1744509940923,0.29603708,1621.2,1620.9,13.66116]
[1744509941218,0.29603708,1621.2,1621.0,6.16902]
[1744509941922,6.16893,1621.1,1620.6,6.17052]
[1744509942123,6.786063,1621.0,1620.6,6.17052]
[1744509942292,6.16917,1621.0,1620.6,6.17052]
[1744509942624,0.2937977,1620.9,1620.6,6.17052]
[1744509942992,0.2937977,1620.9,1620.6,12.34084]
[1744509943192,0.2937977,1620.9,1620.7,6.17008]
[1744509943393,6.16868,1621.1,1620.7,6.17008]
[1744509943591,0.29454425,1621.0,1620.7,6.17008]
[1744509943806,6.46362425,1621.0,1620.6,12.34065]
[1744509944206,0.29454425,1621.0,1620.7,6.17007]
[1744509946436,0.29454425,1621.0,1620.7,6.17004]
[1744509948011,0.29454425,1621.0,1620.8,6.16958]
[1744509948212,12.33684,1621.2,1620.8,6.16958]
[1744509948412,0.29442171,1621.1,1620.8,6.16958]
[1744509948608,6.17008,1620.8,1620.3,8.66094]
[1744509948811,6.46135379,1620.7,1620.3,7.42657]
[1744509949032,6.46130379,1620.7,1620.3,7.42657]
[1744509949342,6.46130379,1620.7,1620.5,6.17071]
[1744509949343,0.29082379,1620.7,1620.5,6.17071]
[1744509949636,9.16941,1620.9,1620.3,7.42665]
[1744509949842,9.16941,1620.9,1620.2,6.17204]
[1744509949843,12.3414,1620.6,1620.2,6.17204]
[1744509950043,0.28933004,1620.5,1620.2,6.17204]
[1744509950360,12.3414,1620.6,1620.2,6.17204]
[1744509951136,6.17137,1620.4,1620.1,13.65245]
[1744509951305,6.52867,1620.4,1620.1,13.65245]
[1744509951510,0.28658024,1620.3,1620.1,7.48]
[1744509951941,6.52867,1620.4,1620.1,7.48]
[1744509952138,0.28583304,1620.2,1620.1,13.65242]
[1744509952340,0.3573,1620.4,1620.1,15.63486]
[1744509952513,6.52875,1620.4,1620.1,7.48]
[1744509952858,0.28658024,1620.3,1620.1,7.48]
[1744509953051,6.52875,1620.4,1620.1,7.48]
[1744509953336,0.28658024,1620.3,1620.1,7.48]
[1744509953544,6.45829024,1620.3,1620.1,7.48]
[1744509953714,0.3573,1620.0,1619.7,6.17385]
[1744509953910,0.2852533,1620.2,1619.9,6.1729]
[1744509954136,6.52923,1620.3,1619.9,6.1729]
[1744509954339,6.1721,1620.2,1619.8,6.17335]
[1744509954544,6.1721,1620.2,1619.8,12.34678]
[1744509954745,6.17256,1620.1,1619.7,6.17392]
[1744509955128,6.17337,1619.9,1619.6,7.481]
[1744509957220,6.53039,1620.0,1619.4,1.255]
[1744509957221,6.17386,1619.8,1619.4,6.17512]
[1744509957431,12.34782,1619.8,1619.4,6.17512]
[1744509957662,12.34782,1619.8,1619.4,6.79410312]
[1744509957953,3.3573,1620.0,1619.6,6.17436]
[1744509958152,15.70326,1620.0,1619.6,6.17436]
[1744509958358,3.3573,1620.0,1619.7,6.17383]
[1744509958739,6.17323,1619.9,1619.6,6.17436]
[1744509959843,6.17323,1619.9,1619.5,7.51908]
[1744509960048,6.17323,1619.9,1619.5,8.888338]
[1744509960251,6.17323,1619.9,1619.5,15.062868]
[1744509960558,9.53017,1620.0,1619.5,15.062868]
[1744509960559,0.3573,1620.0,1619.7,6.17397]
[1744509962835,0.3573,1620.0,1619.7,12.34778]
[1744509963031,0.3573,1620.0,1619.7,6.17381]
[1744509963229,0.3573,1620.0,1619.7,13.582443]
[1744509963530,0.3573,1620.0,1619.7,7.408623]
[1744509963969,6.53026,1620.0,1619.7,7.408623]
[1744509965357,0.2559532,1619.9,1619.7,7.408623]
[1744509965863,0.2559532,1619.9,1619.7,13.582433]
[1744509966167,0.2559532,1619.9,1619.8,1.3582433]
[1744509966367,0.2559532,1619.9,1619.7,6.17381]
[1744509966537,12.34542,1620.1,1619.7,6.17381]
[1744509966736,0.2551734,1619.8,1619.7,6.17381]
[1744509967270,12.34542,1620.1,1619.7,6.17381]
[1744509967475,6.17325,1619.9,1619.6,6.1743]
[1744509967676,0.2551734,1619.8,1619.6,8.4288818]
[1744509967973,6.17325,1619.9,1619.6,8.4288818]
[1744509968189,0.25442573,1619.7,1619.5,13.6577]
[1744509968378,6.53055,1619.9,1619.6,6.17432]
[1744509968877,0.2551734,1619.8,1619.6,6.17432]
[1744509969076,6.53055,1619.9,1619.6,6.17432]
[1744509969298,0.2551734,1619.8,1619.5,13.6577]
[1744509969597,6.53055,1619.9,1619.5,14.332547]
[1744509969897,6.53055,1619.9,1619.6,6.17436]
[1744509970189,0.2551734,1619.8,1619.6,12.34853]
[1744509970372,0.2551734,1619.8,1619.6,6.17417]
[1744509970575,0.3573,1619.9,1619.6,6.17417]
[1744509970889,0.3573,1619.9,1619.6,12.34833]
[1744509971063,0.2551734,1619.8,1619.6,13.7814907]
[1744509971250,0.3573,1619.9,1619.6,13.7814907]
[1744509971451,0.25263752,1619.8,1619.7,6.17398]
[1744509971771,0.3573,1620.1,1619.7,12.34796]
[1744509971984,6.52978,1620.1,1619.7,12.34796]
[1744509972187,0.2538424,1620.0,1619.7,12.34796]
[1744509972351,0.2538424,1620.0,1619.7,13.72607207]
[1744509972951,0.2538424,1620.0,1619.7,14.99117207]
[1744509974387,0.2538424,1620.0,1619.8,6.1735]
[1744509974592,0.2538424,1620.0,1619.7,8.81719207]
[1744509974766,6.4267724,1620.0,1619.7,6.17398]
[1744509974962,0.3573,1619.8,1619.5,7.473]
[1744509975165,6.17405,1619.7,1619.5,7.473]
[1744509975490,0.24698303,1619.7,1619.2,4.2651]
[1744509975714,0.24698303,1619.7,1619.2,6.44349902]
[1744509975875,9.53021,1620.0,1619.6,6.17408]
[1744509976076,0.24834933,1619.9,1619.6,12.34818]
[1744509976388,12.59516933,1619.9,1619.5,6.1747]
[1744509976603,6.17365,1619.8,1619.5,6.1747]
[1744509976964,0.2468541,1619.7,1619.5,6.1747]
[1744509977475,0.2468541,1619.7,1619.4,12.35005]
[1744509977801,0.2468541,1619.7,1619.5,6.17469]
[1744509979219,0.2468541,1619.7,1619.6,6.17436]
[1744509979378,3.3573,1620.0,1619.7,6.17397]
[1744509979573,0.3573,1620.0,1619.6,6.17436]
[1744509979822,0.3573,1620.0,1619.8,6.17325]
[1744509980295,0.20950273,1619.9,1619.7,6.791336]
[1744509980788,0.20950273,1619.9,1619.7,12.965126]
[1744509980993,6.17252,1620.1,1619.8,6.1736]
[1744509981181,0.21025021,1620.0,1619.8,6.1736]
[1744509981378,0.21025021,1620.0,1619.9,6.17322]
[1744509981641,6.17296,1620.0,1619.8,1.2964826]
[1744509981815,0.20950273,1619.9,1619.6,6.17431]
[1744509982417,0.20950273,1619.9,1619.6,12.34855]
[1744509982753,0.20950273,1619.9,1619.7,6.17396]
[1744509983790,0.20950273,1619.9,1619.6,6.17424]
[1744509983988,6.38288273,1619.9,1619.5,7.43978]
[1744509984222,6.90338273,1619.9,1619.5,8.4817295]
[1744509984426,6.17373,1619.8,1619.4,15.631515]
[1744509984628,12.3477,1619.8,1619.4,13.64911]
[1744509984849,0.20873538,1619.7,1619.4,13.64911]
[1744509985140,6.17402,1619.7,1619.4,6.17511]
[1744509985344,6.17402,1619.7,1619.4,7.542424]
[1744509985553,0.20759797,1619.6,1619.4,1.367314]
[1744509985731,13.07743797,1619.6,1619.2,6.17584]
[1744509985931,6.17477,1619.5,1619.2,6.17584]
[1744509986236,6.38129536,1619.5,1619.1,59.11723]
[1744509986902,0.20652536,1619.5,1619.2,6.17575]
[1744509987126,0.20652536,1619.5,1619.2,12.3207096]
[1744509987598,6.17478,1619.5,1619.2,12.3207096]
[1744509987799,0.20577743,1619.4,1619.2,12.3207096]
[1744509988010,0.20577743,1619.4,1619.3,6.1755]
[1744509988219,6.6949,1619.6,1619.3,8.02511296]
[1744509988426,6.1744,1619.6,1619.3,9.37251296]
[1744509988606,0.20652536,1619.5,1619.3,9.37251296]
[1744509988812,0.20652536,1619.5,1619.3,1.84961296]
[1744509989140,0.20652536,1619.5,1619.2,18.4963396]
[1744509989302,0.20652536,1619.5,1619.2,12.3206296]
[1744509989303,6.38127536,1619.5,1619.2,12.3206296]
[1744509989616,6.38127536,1619.5,1619.1,66.64075]
[1744509989822,6.38127536,1619.5,1619.2,6.17588]
[1744509990027,0.5205,1619.4,1619.1,59.11712]
[1744509990212,0.18883697,1619.3,1619.1,6.19612]
[1744509990410,6.17569,1619.3,1619.1,0.02]
[1744509990600,6.36341666,1619.2,1619.1,0.02]
[1744509990806,7.50148566,1619.2,1619.1,0.02]
[1744509991399,1.32560566,1619.2,1619.1,0.02]
[1744509991601,0.70803666,1619.2,1619.1,0.02]
[1744509993413,0.18753666,1619.2,1619.1,6.19627]
[1744509993615,14.16893,1619.6,1619.2,6.1756]
[1744509993847,0.18929343,1619.5,1619.2,6.1756]
[1744509994041,0.18929343,1619.5,1619.2,6.93149]
[1744509994248,0.18929343,1619.5,1619.3,6.17548]
[1744509994822,0.18929343,1619.5,1619.2,6.93149]
[1744509995639,0.18929343,1619.5,1619.1,7.55953]
[1744509995845,0.18929343,1619.5,1619.1,7.55943]
[1744509996022,0.18929343,1619.5,1619.2,6.17566]
[1744509997362,0.18929343,1619.5,1619.2,12.35137]
[1744509997860,0.18929343,1619.5,1619.3,6.17537]
[1744509999058,0.18929343,1619.5,1619.2,6.17566]
[1744509999635,0.18929343,1619.5,1619.1,7.55953]
[1744509999962,6.69638,1619.2,1619.1,0.02]
[1744510000479,6.88180542,1619.2,1619.1,0.02]
[1744510001883,10.43180542,1619.2,1619.1,0.02]
[1744510002082,10.89791364,1619.2,1619.1,0.02]
[1744510002256,18.35891364,1619.2,1619.1,0.02]
[1744510002462,17.80891364,1619.2,1619.1,0.02]
[1744510002772,18.35891364,1619.2,1619.1,0.02]
[1744510002939,6.17848,1618.6,1618.2,6.17964]
[1744510003141,0.5205,1618.5,1618.1,14.99207]
[1744510003352,0.70068598,1618.5,1618.1,14.99207]
[1744510003575,6.69936,1618.5,1618.1,17.61444558]
[1744510003944,6.17897,1618.4,1618.1,7.481]
[1744510004146,6.17953,1618.3,1618.1,0.02]
[1744510004364,6.35821816,1618.3,1618.1,0.02]
[1744510005544,6.7002,1618.2,1618.1,0.02]
[1744510006046,6.7002,1618.2,1618.1,6.20008]
[1744510006047,0.17358194,1618.2,1618.1,6.20008]
[1744510006374,0.5205,1618.4,1618.1,6.20008]
[1744510006884,0.17422747,1618.3,1618.1,6.20008]
[1744510007085,6.69945,1618.4,1618.1,0.02]
[1744510007384,0.17422747,1618.3,1618.1,0.02]
[1744510007685,12.87864,1618.4,1618.1,0.02]
[1744510007886,6.35374747,1618.3,1618.1,0.02]
[1744510008485,0.17422747,1618.3,1618.1,0.02]
[1744510008783,6.69945,1618.4,1618.1,0.02]
[1744510008988,0.17347842,1618.2,1618.1,6.20008]
[1744510009158,6.17876,1618.5,1618.1,6.20008]
[1744510009361,0.617876,1618.4,1618.2,6.17957]
[1744510009549,0.17497643,1618.4,1618.3,6.17932]
[1744510009954,6.17821,1618.6,1618.3,6.17932]
[1744510010157,0.17061905,1618.4,1618.3,6.17932]
[1744510010355,6.17821,1618.6,1618.3,6.17932]
[1744510010852,0.17136792,1618.5,1618.3,6.17932]
[1744510012084,0.17136792,1618.5,1618.2,1.3311]
[1744510012287,6.70037,1618.5,1618.1,6.20008]
[1744510012582,0.17061905,1618.4,1618.1,6.20008]
[1744510013082,0.17061905,1618.4,1618.1,12.38001]
[1744510014588,0.17061905,1618.4,1618.1,6.19993]
[1744510015290,0.17061905,1618.4,1618.2,6.17953]
[1744510015490,0.17061905,1618.4,1618.1,6.20004]
[1744510015659,6.34973905,1618.4,1618.1,0.02]
[1744510016294,6.34820846,1618.4,1618.1,0.02]
[1744510017595,6.17951,1618.3,1618.1,0.02]
[1744510017798,0.5215,1618.2,1618.1,0.02]
[1744510018092,6.84661645,1618.2,1618.1,0.02]
[1744510018492,10.85340362,1618.2,1618.1,0.02]
[1744510018693,18.31940362,1618.2,1618.1,0.02]
[1744510018893,6.18232,1617.6,1617.2,14.98289]
[1744510019099,6.32399326,1617.5,1617.2,7.51689]
[1744510019320,6.32399326,1617.5,1617.1,6.20387]
[1744510019490,6.32407326,1617.5,1617.1,6.20388]
[1744510019824,0.14159326,1617.5,1617.2,6.18336]
[1744510020007,6.32413326,1617.5,1617.1,6.20388]
[1744510020532,12.50677326,1617.5,1617.1,6.20388]
[1744510020714,6.32413326,1617.5,1617.1,6.20388]
[1744510021230,0.14159326,1617.5,1617.1,0.02]
[1744510021374,6.18352,1617.2,1617.1,0.02]
[1744510021571,6.70502,1617.2,1617.1,0.02]
[1744510021782,6.84090298,1617.2,1617.1,0.02]
[1744510022386,0.13588298,1617.2,1617.1,6.2039]
[1744510022815,15.88592,1617.6,1617.1,6.2039]
[1744510022990,0.13588298,1617.2,1617.1,6.2039]
[1744510023317,0.13588298,1617.2,1617.1,1.400957]
[1744510023480,3.5215,1617.6,1617.1,1.400957]
[1744510023686,6.18295,1617.4,1617.1,0.02]
[1744510023995,0.13663315,1617.3,1617.1,0.02]
[1744510024403,6.18295,1617.4,1617.1,0.02]
[1744510024593,0.13602533,1617.2,1617.1,6.2039]
[1744510024799,9.70349,1617.6,1617.1,13.626594]
[1744510024800,6.18248,1617.5,1617.1,13.626594]
[1744510024993,0.13602533,1617.2,1617.1,12.3878]
[1744510025228,6.18248,1617.5,1617.1,12.3878]
[1744510025392,0.13602533,1617.2,1617.1,12.3878]
[1744510025600,6.70247,1617.9,1617.5,6.18219]
[1744510025798,0.5215,1617.9,1617.5,6.18214]
[1744510026041,6.1801,1618.1,1617.7,6.18138]
[1744510026356,3.16154666,1618.1,1617.4,6.18276]
[1744510026627,6.18087,1617.9,1617.3,4.3705]
[1744510026819,6.18087,1617.9,1617.4,6.61953]
[1744510027015,0.5215,1617.8,1617.1,7.54132]
[1744510027223,6.1819,1617.7,1617.3,12.36582]
[1744510027628,6.1819,1617.7,1617.3,6.18287]
[1744510028329,6.70277,1617.8,1617.1,1.3575]
[1744510028330,6.70282,1617.8,1617.4,7.51995]
[1744510028515,6.18163,1617.7,1617.4,1.3375]
[1744510028723,6.18239,1617.5,1617.1,7.54106]
[1744510029124,6.18239,1617.5,1617.1,13.72482]
[1744510029422,6.18239,1617.5,1617.1,13.72474]
[1744510029623,6.18234,1617.6,1617.2,6.18351]
[1744510029823,12.36465,1617.6,1617.2,6.18351]
[1744510030325,6.70388,1617.5,1617.1,6.20356]
[1744510030630,6.18317,1617.3,1617.1,0.02]
[1744510030931,6.18312,1617.4,1617.1,0.02]
[1744510031118,6.70391,1617.5,1617.1,12.38756]
[1744510031524,12.88654,1617.5,1617.1,6.20374]
[1744510031724,6.70391,1617.5,1617.1,6.20374]
[1744510031927,6.70391,1617.5,1617.1,0.02]
[1744510031928,0.5215,1617.5,1617.1,0.02]
[1744510032127,6.70313,1617.7,1617.4,6.1827]
[1744510032303,6.70313,1617.7,1617.3,12.36589]
[1744510032508,6.70313,1617.7,1617.4,6.18275]
[1744510034040,12.88499,1617.7,1617.3,6.18292]
[1744510034539,6.182,1617.6,1617.2,7.52101]
[1744510034744,6.182,1617.6,1617.2,13.70452]
[1744510035552,6.182,1617.6,1617.3,6.18312]
[1744510036537,6.70313,1617.7,1617.3,6.18312]
[1744510036744,12.88501,1617.7,1617.3,6.18299]
[1744510037336,6.70313,1617.7,1617.3,12.36593]
[1744510037536,6.70313,1617.7,1617.3,6.18294]
[1744510038144,12.88505,1617.7,1617.3,6.18294]
[1744510038757,6.70313,1617.7,1617.3,12.36594]
[1744510039038,6.70313,1617.7,1617.3,6.18294]
[1744510039566,12.88498,1617.7,1617.3,6.18294]
[1744510039721,6.18212,1617.6,1617.3,6.18294]
[1744510040352,0.12411836,1617.5,1617.3,6.18294]
[1744510040755,0.12411836,1617.5,1617.3,12.36594]
[1744510040960,6.70313,1617.7,1617.3,6.18294]
[1744510041264,0.12529506,1617.6,1617.3,6.18294]
[1744510041556,12.88498,1617.7,1617.3,6.18294]
[1744510041722,0.12529506,1617.6,1617.3,6.18294]
[1744510041923,12.88498,1617.7,1617.3,6.18294]
[1744510042151,0.12529506,1617.6,1617.3,6.18294]
[1744510042356,12.88498,1617.7,1617.3,6.18294]
[1744510042555,0.12543736,1617.6,1617.3,6.18294]
[1744510042732,12.88498,1617.7,1617.3,6.18294]
[1744510042935,0.12532765,1617.6,1617.4,6.18263]
[1744510043121,6.70313,1617.7,1617.4,6.18263]
[1744510043326,0.12532765,1617.6,1617.3,12.36594]
[1744510043539,6.70313,1617.7,1617.3,6.18294]
[1744510043540,12.88498,1617.7,1617.3,6.18294]
[1744510043740,0.12532765,1617.6,1617.3,6.18294]
[1744510043944,6.70313,1617.7,1617.4,6.18276]
[1744510044142,0.12532765,1617.6,1617.4,6.18276]
[1744510044342,12.88498,1617.7,1617.4,6.18276]
[1744510044547,0.12532765,1617.6,1617.4,6.18276]
[1744510044869,0.12457787,1617.5,1617.4,6.18276]
[1744510045045,12.88498,1617.7,1617.4,6.18276]
[1744510045373,0.12532765,1617.6,1617.4,6.18276]
[1744510045580,0.12532765,1617.6,1617.5,6.18238]
[1744510045865,6.70294,1618.4,1618.0,6.18043]
[1744510046052,6.70294,1618.4,1618.0,6.18027]
[1744510046251,6.70294,1618.4,1618.0,12.36059]
[1744510047368,7.16465887,1618.4,1618.0,6.18027]
[1744510047668,12.8822,1618.4,1618.0,6.18027]
[1744510048468,6.70294,1618.4,1618.0,12.36058]
[1744510048658,12.88226,1618.4,1618.0,6.18027]
[1744510049265,6.17932,1618.3,1618.0,6.18027]
[1744510049475,6.18032,1618.1,1617.7,7.54938]
[1744510049775,6.18032,1618.1,1617.7,13.73085]
[1744510050469,6.1797,1618.2,1617.8,6.18121]
[1744510050647,7.456,1618.5,1618.2,6.17957]
[1744510051361,7.456,1618.5,1618.3,6.17911]
[1744510051963,7.456,1618.5,1618.2,6.17957]
[1744510052473,7.456,1618.5,1618.2,12.35909]
[1744510052673,7.456,1618.5,1618.2,6.17952]
[1744510052971,7.456,1618.5,1618.2,12.35906]
[1744510053879,7.456,1618.5,1618.1,6.18002]
[1744510054044,14.15886,1618.5,1618.1,6.17986]
[1744510054396,7.456,1618.5,1618.3,6.17901]
[1744510054572,7.456,1618.5,1618.3,12.35817]
[1744510054753,7.456,1618.5,1618.3,13.78261]
[1744510055276,12.88026,1618.7,1618.3,7.60351]
[1744510055776,12.83026,1618.7,1618.3,7.60351]
[1744510056344,12.83026,1618.7,1617.8,14.43739427]
[1744510056345,6.1797,1618.2,1617.9,1.4502]
[1744510056559,0.4734818,1618.2,1617.6,7.63211]
[1744510056751,6.18037,1618.1,1617.7,6.1814]
[1744510056968,6.18037,1618.1,1617.8,6.18122]
[1744510057166,12.35954,1618.2,1617.8,6.18122]
[1744510057475,6.17971,1618.2,1617.8,6.18122]
[1744510057854,12.30966,1618.2,1617.8,6.18122]
[1744510058067,6.18013,1618.1,1617.8,6.18122]
[1744510058767,6.12971,1618.2,1617.8,6.18108]
[1744510058969,9.1792,1618.4,1618.0,1.4502]
[1744510059279,6.17957,1618.3,1617.9,6.18066]
[1744510059440,6.17957,1618.3,1617.9,12.36137]
[1744510059648,6.17957,1618.3,1617.9,13.742527]
[1744510060268,6.17957,1618.3,1617.9,7.561817]
[1744510060468,6.17972,1618.2,1617.9,7.561817]
[1744510060670,6.17957,1618.3,1617.9,7.561817]
[1744510060847,9.179,1618.4,1618.0,7.63065]
[1744510061047,15.35824,1618.4,1618.0,7.63065]
[1744510061969,12.2883,1618.6,1618.3,7.62938]
[1744510062151,6.11,1618.6,1618.3,7.62938]
[1744510062353,10.06175821,1618.8,1618.3,1.4502]
[1744510062559,10.23468876,1618.8,1618.4,6.17893]
[1744510062748,16.41233876,1618.8,1618.4,6.17893]
[1744510063164,22.58998876,1618.8,1618.4,6.17893]
[1744510064284,16.41233876,1618.8,1618.4,6.17893]
[1744510064481,10.23468876,1618.8,1618.5,6.17842]
[1744510064984,10.23468876,1618.8,1618.3,7.62952]
[1744510065282,7.61193055,1618.8,1618.6,7.62822]
[1744510065471,0.17293055,1618.8,1618.6,7.62822]
[1744510065854,6.17703,1618.9,1618.6,7.62822]
[1744510066054,0.14135988,1618.7,1618.6,7.62822]
[1744510066254,6.17703,1618.9,1618.6,1.4502]
[1744510066454,0.14135988,1618.7,1618.6,1.4502]
[1744510066690,6.17703,1618.9,1618.6,1.4502]
[1744510066902,0.14135988,1618.7,1618.6,1.4502]
[1744510067065,6.17749,1618.8,1618.4,7.52719]
[1744510067268,0.14135988,1618.7,1618.4,7.52719]
[1744510068582,0.14135988,1618.7,1618.4,13.70597]
[1744510068782,0.14135988,1618.7,1618.5,6.17853]
[1744510068990,0.14135988,1618.7,1618.5,12.35693]
[1744510069578,6.17707,1618.9,1618.5,13.727453]
[1744510069778,0.14237565,1618.8,1618.6,6.17817]
[1744510070280,0.14237565,1618.8,1618.5,7.548923]
[1744510071489,6.31980565,1618.8,1618.4,7.5272]
[1744510071690,12.49751565,1618.8,1618.4,7.5272]
[1744510072187,6.31980565,1618.8,1618.4,7.5272]
[1744510072390,6.31980565,1618.8,1618.4,13.70593]
[1744510075300,6.31980565,1618.8,1618.4,7.52703]
[1744510075467,6.31980565,1618.8,1618.5,6.17855]
[1744510077395,6.31980565,1618.8,1618.4,14.458533]
[1744510077695,0.14237565,1618.8,1618.5,6.17852]
[1744510077896,0.14237565,1618.8,1618.6,6.17797]
[1744510078197,12.82766,1619.0,1618.6,6.17797]
[1744510078403,0.12178675,1618.9,1618.4,1.3483]
[1744510078569,2.65682427,1618.5,1618.0,1.407]
[1744510078762,6.32079144,1618.4,1618.0,1.407]
[1744510078965,6.32079144,1618.4,1618.1,6.18008]
[1744510079161,6.32079144,1618.4,1618.1,7.556804]
[1744510079791,6.32079144,1618.4,1618.1,1.376724]
[1744510080099,12.49995144,1618.4,1618.1,1.376724]
[1744510080299,6.32079144,1618.4,1618.1,1.376724]
[1744510082103,6.17984,1618.2,1618.0,1.407]
[1744510082300,6.18047,1618.0,1617.8,1.434]
[1744510082704,6.31921517,1618.0,1617.6,68.06487]
[1744510082899,6.31921517,1618.0,1617.6,15.05187]
[1744510083106,6.18099,1617.9,1617.6,8.87]
[1744510083267,6.18099,1617.9,1617.6,10.5128744]
[1744510084190,6.18161,1617.7,1617.5,1.376634]
[1744510084415,6.18161,1617.7,1617.4,7.61667]
[1744510084585,6.18161,1617.7,1617.4,1.434]
[1744510088192,7.9086,1618.0,1617.4,1.434]
[1744510088393,7.438,1618.0,1617.8,6.18095]
[1744510088591,6.17974,1618.2,1617.8,6.942355]
[1744510088802,12.3589,1618.3,1617.9,6.18067]
[1744510089521,143.116679,1618.0,1617.9,6.18067]
[1744510089815,143.116679,1618.0,1617.8,6.942355]
[1744510090020,143.116679,1618.0,1617.8,0.761495]
[1744510090387,143.116679,1618.0,1617.8,6.942715]
[1744510095008,143.116679,1618.0,1617.8,13.123745]
[1744510095855,143.116679,1618.0,1617.9,6.18085]
[1744510096843,143.116679,1618.0,1617.8,6.942525]
[1744510100562,143.116679,1618.0,1617.8,13.123555]
[1744510100860,143.116679,1618.0,1617.8,6.942525]
[1744510101057,143.116679,1618.0,1617.9,6.18085]
[1744510104163,143.116679,1618.0,1617.8,6.942525]
[1744510104497,149.760979,1618.0,1617.7,6.18154]
[1744510104677,149.760979,1618.0,1617.6,19.80284]
[1744510105665,149.760979,1618.0,1617.7,6.18161]
[1744510105827,143.580379,1618.0,1617.7,6.18143]
[1744510106028,143.116679,1618.0,1617.9,6.18085]
[1744510107127,143.116679,1618.0,1617.9,7.551525]
[1744510116274,143.116679,1618.0,1617.9,8.904625]
[1744510116883,143.116679,1618.0,1617.9,8.804625]
[1744510117577,143.116679,1618.0,1617.9,16.226625]
[1744510120500,0.4637,1618.9,1618.6,6.17817]
[1744510120668,6.17678,1619.0,1618.3,6.17929]
[1744510120669,9.1767,1619.0,1618.3,6.17929]
[1744510121002,9.1767,1619.0,1618.1,6.07]
[1744510121003,0.4637,1618.3,1618.1,6.07]
[1744510121163,6.81614625,1618.3,1617.9,10.145775]
[1744510121364,12.99581625,1618.3,1617.9,10.145775]
[1744510121763,6.17982,1618.2,1617.9,7.422]
[1744510123098,12.35984,1618.2,1617.9,7.422]
[1744510123304,6.18072,1618.0,1617.6,7.404]
[1744510123464,0.4637,1618.1,1617.7,6.18148]
[1744510123666,0.4637,1618.3,1617.8,4.15987227]
[1744510124006,0.17309625,1618.3,1618.0,6.18045]
[1744510124302,12.82127,1618.5,1618.0,6.18045]
[1744510124460,12.82127,1618.5,1617.8,10.34110227]
[1744510124461,0.17309625,1618.3,1617.8,10.34110227]
[1744510124660,6.17932,1618.3,1617.8,10.34110227]
[1744510124896,0.17309625,1618.3,1617.9,1.03411023]
[1744510125267,6.17896,1618.4,1617.9,1.03411023]
[1744510125460,0.138477,1618.3,1617.9,1.03411023]
[1744510125698,0.138477,1618.3,1617.9,7.21492023]
[1744510125931,6.17896,1618.4,1617.9,7.21492023]
[1744510126185,0.138477,1618.3,1617.9,7.21492023]
[1744510126353,6.17896,1618.4,1618.0,0.72149202]
[1744510126558,0.138477,1618.3,1617.9,7.21492023]
[1744510126756,6.17896,1618.4,1617.9,7.21492023]
[1744510126975,0.138477,1618.3,1617.9,7.21492023]
[1744510127184,6.17896,1618.4,1617.9,7.21492023]
[1744510127581,0.138477,1618.3,1617.9,7.21492023]
[1744510127784,6.17896,1618.4,1618.0,0.72149202]
[1744510127984,0.138477,1618.3,1617.9,7.21492023]
[1744510128185,0.4637,1618.2,1617.9,1.03411023]
[1744510128383,6.18054,1618.0,1617.7,5.97]
[1744510128797,6.18054,1618.0,1617.6,1.3555]